[Event "SWE-ch Blitz 2019"]
[Site "Eskilstuna"]
[Date "2019.07.11"]
[Round "3.1"]
[White "Tikkanen, Hans"]
[Black "Johansson, Robin"]
[Result "*"]
[ECO "D02"]
[WhiteElo "2503"]
[BlackElo "2174"]
[Annotator "ChessBase"]
[PlyCount "34"]
[EventDate "2019.07.06"]
[EventType "swiss"]
[EventCountry "SWE"]
[SourceTitle "playchess.com"]
[Source "ChessBase"]
[SourceQuality "1"]
[TimeControl "180+2"]

1. d4 {[%emt 0:00:00]} d5 {[%emt 0:00:00]} 2. Nf3 {[%emt 0:00:00]} Nc6 {[%emt 0:00:01]} 3. e3 {[%emt 0:00:07]} Bg4 {[%emt 0:00:11]} 4. h3 {[%emt 0:00:37]} Bxf3 {[%emt 0:00:05]} 5. Qxf3 {[%emt 0:00:01]} e5 {[%emt 0:00:20]} 6. Bb5 {[%emt 0:00:16]} e4 {[%emt 0:00:09]} 7. Qe2 {[%emt 0:00:09]} Nge7 {[%emt 0:00:17]} 8. c4 {[%emt 0:00:18]} a6 {[%emt 0:00:08]} 9. Ba4 {[%emt 0:00:07]} dxc4 {[%emt 0:00:21]} 10. Bxc6+ {[%emt 0:00:01]} Nxc6 {[%emt 0:00:03]} 11. Qxc4 {[%emt 0:00:02]} Bd6 {[%emt 0:00:07]} 12. Nc3 {[%emt 0:00:23]} Qg5 {[%emt 0:00:17]} 13. O-O {[%emt 0:00:12]} Qg6 {[%emt 0:00:09]} 14. d5 {[%emt 0:00:12]} Ne5 {[%emt 0:00:59]} 15. Qxe4 {[%emt 0:00:25]} f5 {[%emt 0:00:09]} 16. Qa4+ {[%emt 0:00:08]} Kf7 {[%emt 0:03:30]} 17. f4 {[%emt 0:00:03]} Nd3 {[%emt 0:00:24]} *

[Event "SWE-ch Blitz 2019"]
[Site "Eskilstuna"]
[Date "2019.07.11"]
[Round "3.2"]
[White "Cardenas, William"]
[Black "Agrest, Evgenij"]
[Result "*"]
[ECO "D11"]
[WhiteElo "2104"]
[BlackElo "2583"]
[Annotator "ChessBase"]
[PlyCount "44"]
[EventDate "2019.07.06"]
[EventType "swiss"]
[EventCountry "SWE"]
[SourceTitle "playchess.com"]
[Source "ChessBase"]
[SourceQuality "1"]
[TimeControl "180+2"]

1. d4 {[%emt 0:00:01]} d5 {[%emt 0:00:00]} 2. Nf3 {[%emt 0:00:02]} Nf6 {[%emt 0:00:02]} 3. g3 {[%emt 0:00:01]} Bg4 {[%emt 0:00:04]} 4. Bg2 {[%emt 0:00:01]} Nbd7 {[%emt 0:00:07]} 5. O-O {[%emt 0:00:04]} e6 {[%emt 0:00:03]} 6. c4 {[%emt 0:00:06]} c6 {[%emt 0:00:01]} 7. Qb3 {[%emt 0:00:11]} Qb6 {[%emt 0:00:03]} 8. c5 {[%emt 0:00:02]} Qa6 {[%emt 0:00:04]} 9. Re1 {[%emt 0:00:11]} b6 {[%emt 0:00:02]} 10. cxb6 axb6 {[%emt 0:00:01]} 11. Nc3 {[%emt 0:00:27]} Bf5 {[%emt 0:00:35]} 12. Bf1 {[%emt 0:00:22]} Qb7 {[%emt 0:00:09]} 13. Bf4 {[%emt 0:00:29]} Be7 {[%emt 0:00:05]} 14. a4 {[%emt 0:00:02]} O-O {[%emt 0:00:15]} 15. a5 {[%emt 0:00:10]} c5 {[%emt 0:00:16]} 16. Qb5 {[%emt 0:00:35]} Qa6 {[%emt 0:00:23]} 17. Qxa6 {[%emt 0:00:11]} Rxa6 {[%emt 0:00:01]} 18. e4 {[%emt 0:00:02]} dxe4 {[%emt 0:00:05]} 19. Bxa6 {[%emt 0:00:01]} exf3 {[%emt 0:00:02]} 20. d5 {[%emt 0:00:07]} bxa5 {[%emt 0:00:24]} 21. Rxa5 {[%emt 0:00:45]} Re8 {[%emt 0:00:41]} 22. Bb5 {[%emt 0:00:12]} exd5 {[%emt 0:00:57]} *

[Event "SWE-ch Blitz 2019"]
[Site "Eskilstuna"]
[Date "2019.07.11"]
[Round "3.3"]
[White "Wahlund, Max"]
[Black "Schussler, Harry"]
[Result "*"]
[ECO "A40"]
[WhiteElo "2100"]
[BlackElo "2410"]
[Annotator "NA"]
[PlyCount "45"]
[EventDate "2019.07.06"]
[EventType "swiss"]
[EventCountry "SWE"]
[SourceTitle "playchess.com"]
[Source "ChessBase"]
[SourceQuality "1"]
[TimeControl "180+2"]

1. d4 {[%emt 0:00:00]} e6 {[%emt 0:00:00]} 2. c4 {[%emt 0:00:02]} Bb4+ {[%emt 0:00:01]} 3. Bd2 {[%emt 0:00:01]} a5 {[%emt 0:00:02]} 4. g3 {[%emt 0:00:04]} b6 {[%emt 0:00:05]} 5. Bg2 {[%emt 0:00:01]} Ra7 {[%emt 0:00:01]} 6. a3 {[%emt 0:00:04]} Bxd2+ {[%emt 0:00:04]} 7. Qxd2 {[%emt 0:00:10]} Bb7 {[%emt 0:00:03]} 8. Bxb7 Rxb7 {[%emt 0:00:01]} 9. e4 {[%emt 0:00:06]} d5 {[%emt 0:00:13]} 10. cxd5 {[%emt 0:00:15]} exd5 {[%emt 0:00:02]} 11. e5 {[%emt 0:00:12]} Ne7 {[%emt 0:00:04]} 12. Nc3 {[%emt 0:00:02]} O-O {[%emt 0:00:05]} 13. O-O-O {[%emt 0:00:19]} c5 {[%emt 0:00:06]} 14. dxc5 {[%emt 0:00:08]} bxc5 {[%emt 0:00:03]} 15. Nxd5 {[%emt 0:00:05]} Rd7 {[%emt 0:00:37]} 16. Nxe7+ {[%emt 0:00:14]} Qxe7 {[%emt 0:00:02]} 17. Qe2 {[%emt 0:00:11]} Rxd1+ {[%emt 0:00:04]} 18. Kxd1 {[%emt 0:00:06]} c4 {[%emt 0:00:28]} 19. Qxc4 {[%emt 0:00:26]} Qb7 {[%emt 0:00:13]} 20. f3 {[%emt 0:00:47]} Rd8+ {[%emt 0:03:10]} 21. Ke1 {[%emt 0:00:12]} Nc6 {[%emt 0:00:06]} 22. Qc3 {[%emt 0:01:33]} Nd4 {[%emt 0:00:57]} 23. Kf2 {[%emt 0:00:07]} *

[Event "SWE-ch Blitz 2019"]
[Site "Eskilstuna"]
[Date "2019.07.11"]
[Round "3.5"]
[White "Tuomainen, Felix"]
[Black "Seo, Jung Min"]
[Result "*"]
[ECO "A77"]
[WhiteElo "2208"]
[BlackElo "2399"]
[Annotator "NA"]
[PlyCount "67"]
[EventDate "2019.07.06"]
[EventType "swiss"]
[EventCountry "SWE"]
[SourceTitle "playchess.com"]
[Source "ChessBase"]
[SourceQuality "1"]
[TimeControl "180+2"]

1. d4 {[%emt 0:00:00]} Nf6 {[%emt 0:00:00]} 2. c4 c5 3. d5 e6 4. Nc3 {[%emt 0:00:09]} exd5 {[%emt 0:00:00]} 5. cxd5 d6 6. Nf3 {[%emt 0:00:04]} g6 {[%emt 0:00:01]} 7. Nd2 {[%emt 0:00:02]} Bg7 {[%emt 0:00:01]} 8. e4 {[%emt 0:00:01]} O-O 9. Be2 {[%emt 0:00:06]} a6 {[%emt 0:00:02]} 10. a4 {[%emt 0:00:01]} Re8 {[%emt 0:00:00]} 11. O-O {[%emt 0:00:02]} Nbd7 {[%emt 0:00:02]} 12. Qc2 {[%emt 0:00:07]} Ne5 {[%emt 0:00:01]} 13. h3 {[%emt 0:00:05]} g5 {[%emt 0:00:01]} 14. Nf3 {[%emt 0:00:30]} Nxf3+ {[%emt 0:00:02]} 15. Bxf3 {[%emt 0:00:01]} g4 {[%emt 0:00:01]} 16. hxg4 {[%emt 0:00:04]} Nxg4 {[%emt 0:00:01]} 17. Bf4 {[%emt 0:00:24]} h5 {[%emt 0:00:08]} 18. Ra3 {[%emt 0:00:16]} Qf6 {[%emt 0:00:01]} 19. Bxg4 {[%emt 0:00:18]} Bxg4 {[%emt 0:00:24]} 20. Be3 {[%emt 0:00:07]} Qg6 {[%emt 0:00:02]} 21. f3 {[%emt 0:00:05]} Bd7 {[%emt 0:00:04]} 22. Rb3 {[%emt 0:00:10]} Rab8 {[%emt 0:00:04]} 23. Rb6 {[%emt 0:00:08]} Be5 {[%emt 0:00:09]} 24. Qd2 {[%emt 0:00:40]} Qg3 {[%emt 0:00:30]} 25. f4 {[%emt 0:00:07]} Bxc3 {[%emt 0:00:02]} 26. bxc3 {[%emt 0:00:20]} Rxe4 {[%emt 0:00:02]} 27. Rf3 {[%emt 0:00:01]} Qg6 {[%emt 0:00:03]} 28. Qf2 {[%emt 0:00:05]} Rbe8 {[%emt 0:00:10]} 29. f5 {[%emt 0:01:16]} Bxf5 {[%emt 0:00:06]} 30. Rxf5 {[%emt 0:00:17]} Rxe3 {[%emt 0:00:01]} 31. Rf6 {[%emt 0:00:03]} Re1+ {[%emt 0:02:02]} 32. Kh2 {[%emt 0:00:06]} Qg4 {[%emt 0:00:00]} 33. Rxf7 {[%emt 0:00:25]} R1e2 {[%emt 0:00:00]} 34. Qf3 {[%emt 0:00:12]} *

[Event "SWE-ch Blitz 2019"]
[Site "Eskilstuna"]
[Date "2019.07.11"]
[Round "3.7"]
[White "Aroven, Mikael"]
[Black "Rydstrom, Tom"]
[Result "*"]
[ECO "A09"]
[WhiteElo "2103"]
[BlackElo "2345"]
[Annotator "NA"]
[PlyCount "53"]
[EventDate "2019.07.06"]
[EventType "swiss"]
[EventCountry "SWE"]
[SourceTitle "playchess.com"]
[Source "ChessBase"]
[SourceQuality "1"]
[TimeControl "180+2"]

1. Nf3 {[%emt 0:00:00]} d5 {[%emt 0:00:00]} 2. c4 {[%emt 0:00:00]} d4 {[%emt 0:00:00]} 3. e3 {[%emt 0:00:01]} Nc6 {[%emt 0:00:00]} 4. b4 {[%emt 0:00:01]} dxe3 {[%emt 0:00:06]} 5. fxe3 {[%emt 0:00:05]} Nxb4 {[%emt 0:00:01]} 6. d4 {[%emt 0:00:03]} e5 {[%emt 0:00:08]} 7. a3 {[%emt 0:00:19]} Nc6 {[%emt 0:00:06]} 8. d5 {[%emt 0:00:11]} e4 {[%emt 0:00:01]} 9. dxc6 {[%emt 0:00:09]} Qxd1+ {[%emt 0:00:02]} 10. Kxd1 {[%emt 0:00:02]} exf3 {[%emt 0:00:03]} 11. gxf3 {[%emt 0:00:07]} Ne7 {[%emt 0:00:28]} 12. cxb7 Bxb7 {[%emt 0:00:01]} 13. Ke2 {[%emt 0:00:26]} O-O-O {[%emt 0:00:15]} 14. Bh3+ {[%emt 0:00:01]} f5 {[%emt 0:00:24]} 15. Bb2 {[%emt 0:00:08]} Rg8 {[%emt 0:00:09]} 16. Rc1 {[%emt 0:00:53]} g5 {[%emt 0:00:12]} 17. Bf6 {[%emt 0:00:35]} g4 18. fxg4 {[%emt 0:00:01]} fxg4 {[%emt 0:00:10]} 19. Bf1 {[%emt 0:00:02]} Rg6 {[%emt 0:00:07]} 20. Bh4 {[%emt 0:00:30]} Rh6 {[%emt 0:00:11]} 21. Bg3 {[%emt 0:00:12]} Nf5 {[%emt 0:00:06]} 22. Bf4 {[%emt 0:00:03]} Re6 {[%emt 0:00:54]} 23. Nc3 {[%emt 0:00:11]} Nd4+ {[%emt 0:00:01]} 24. Kf2 {[%emt 0:00:07]} Nb3 {[%emt 0:00:01]} 25. Rab1 {[%emt 0:00:02]} Nxc1 {[%emt 0:00:02]} 26. Rxc1 {[%emt 0:00:01]} Bxa3 {[%emt 0:00:02]} 27. Rc2 {[%emt 0:00:13]} *

[Event "SWE-ch Blitz 2019"]
[Site "Eskilstuna"]
[Date "2019.07.11"]
[Round "3.8"]
[White "Drugge, Patrik"]
[Black "Kucuksari, Kaan"]
[Result "0-1"]
[ECO "B23"]
[WhiteElo "2201"]
[BlackElo "2310"]
[Annotator "NA"]
[PlyCount "38"]
[EventDate "2019.07.06"]
[EventType "swiss"]
[EventCountry "SWE"]
[SourceTitle "playchess.com"]
[Source "ChessBase"]
[SourceQuality "1"]
[TimeControl "180+2"]

1. e4 {[%emt 0:00:00]} c5 {[%emt 0:00:00]} 2. Nc3 {[%emt 0:00:02]} e6 {[%emt 0:00:09]} 3. g3 {[%emt 0:00:01]} a6 {[%emt 0:00:01]} 4. a4 {[%emt 0:00:01]} d5 {[%emt 0:00:07]} 5. exd5 exd5 {[%emt 0:00:01]} 6. d4 {[%emt 0:00:02]} cxd4 7. Qxd4 {[%emt 0:00:01]} Nf6 {[%emt 0:00:12]} 8. Bg2 {[%emt 0:00:03]} Nc6 {[%emt 0:00:04]} 9. Qd1 {[%emt 0:00:24]} Bb4 {[%emt 0:00:22]} 10. Bd2 {[%emt 0:00:05]} O-O {[%emt 0:00:09]} 11. Nge2 {[%emt 0:00:01]} d4 {[%emt 0:00:04]} 12. Ne4 Nxe4 {[%emt 0:00:05]} 13. Bxe4 {[%emt 0:00:12]} Re8 {[%emt 0:00:09]} 14. Bxc6 {[%emt 0:01:12]} bxc6 {[%emt 0:00:02]} 15. O-O {[%emt 0:00:50]} Bf8 {[%emt 0:01:09]} 16. Nf4 {[%emt 0:00:30]} c5 {[%emt 0:00:08]} 17. Qh5 {[%emt 0:00:07]} g6 {[%emt 0:00:04]} 18. Qd5 {[%emt 0:00:01]} Qc7 {[%emt 0:00:09]} 19. Nd3 {[%emt 0:00:01]} Bb7 {[%emt 0:00:01]} 0-1

[Event "SWE-ch Blitz 2019"]
[Site "Eskilstuna"]
[Date "2019.07.11"]
[Round "3.11"]
[White "Pantzar, Milton"]
[Black "Lindborg, Petter"]
[Result "*"]
[ECO "A84"]
[WhiteElo "2357"]
[BlackElo "2193"]
[Annotator "NA"]
[PlyCount "51"]
[EventDate "2019.07.06"]
[EventType "swiss"]
[EventCountry "SWE"]
[SourceTitle "playchess.com"]
[Source "ChessBase"]
[SourceQuality "1"]
[TimeControl "180+2"]

1. d4 {[%emt 0:00:00]} e6 {[%emt 0:00:00]} 2. c4 {[%emt 0:00:01]} f5 {[%emt 0:00:00]} 3. Nf3 {[%emt 0:00:01]} Nf6 {[%emt 0:00:01]} 4. Nc3 {[%emt 0:00:01]} Bb4 {[%emt 0:00:01]} 5. Qc2 {[%emt 0:00:13]} b6 {[%emt 0:00:07]} 6. g3 {[%emt 0:00:03]} Bb7 {[%emt 0:00:00]} 7. Bg2 {[%emt 0:00:01]} O-O {[%emt 0:00:01]} 8. O-O {[%emt 0:00:02]} Bxc3 {[%emt 0:00:06]} 9. Qxc3 {[%emt 0:00:02]} a5 {[%emt 0:00:23]} 10. Qc2 {[%emt 0:00:13]} Be4 {[%emt 0:00:02]} 11. Qb3 {[%emt 0:00:13]} Nc6 {[%emt 0:00:13]} 12. Rd1 {[%emt 0:00:26]} Nb4 {[%emt 0:00:15]} 13. Rd2 {[%emt 0:00:11]} Qe7 {[%emt 0:00:08]} 14. a3 {[%emt 0:00:05]} Nc6 {[%emt 0:00:24]} 15. Bf1 {[%emt 0:00:05]} a4 {[%emt 0:00:07]} 16. Qc3 {[%emt 0:00:03]} Na5 {[%emt 0:00:02]} 17. Rd1 {[%emt 0:00:14]} Nb3 {[%emt 0:00:08]} 18. Ra2 {[%emt 0:00:01]} Bb1 {[%emt 0:00:06]} 19. Ra1 {[%emt 0:00:19]} Nxa1 {[%emt 0:00:03]} 20. Bg5 {[%emt 0:00:03]} Nb3 {[%emt 0:00:36]} 21. Rxb1 {[%emt 0:00:01]} h6 {[%emt 0:00:01]} 22. Bf4 {[%emt 0:00:10]} Ne4 {[%emt 0:00:05]} 23. Qc2 {[%emt 0:00:18]} d6 {[%emt 0:00:11]} 24. Rd1 {[%emt 0:00:12]} Qf6 {[%emt 0:00:11]} 25. Be3 {[%emt 0:00:26]} g5 {[%emt 0:00:24]} 26. Ne1 {[%emt 0:00:43]} *

[Event "SWE-ch Blitz 2019"]
[Site "Eskilstuna"]
[Date "2019.07.11"]
[Round "3.12"]
[White "Carlstrom, Niklas"]
[Black "Olund, Joar"]
[Result "*"]
[ECO "B11"]
[WhiteElo "2083"]
[BlackElo "2313"]
[Annotator "NA"]
[PlyCount "52"]
[EventDate "2019.07.06"]
[EventType "swiss"]
[EventCountry "SWE"]
[SourceTitle "playchess.com"]
[Source "ChessBase"]
[SourceQuality "1"]
[TimeControl "180+2"]

1. e4 {[%emt 0:00:00]} c6 {[%emt 0:00:00]} 2. Nc3 {[%emt 0:00:01]} d5 {[%emt 0:00:00]} 3. Nf3 {[%emt 0:00:02]} Nf6 {[%emt 0:00:00]} 4. e5 {[%emt 0:00:02]} Ne4 {[%emt 0:00:02]} 5. Ne2 {[%emt 0:00:03]} Qb6 {[%emt 0:00:01]} 6. d4 {[%emt 0:00:02]} e6 {[%emt 0:00:02]} 7. Ng3 {[%emt 0:00:02]} c5 {[%emt 0:00:04]} 8. Bd3 {[%emt 0:00:08]} Nc6 {[%emt 0:01:09]} 9. Nxe4 {[%emt 0:00:09]} dxe4 10. Bxe4 {[%emt 0:00:01]} Nxd4 {[%emt 0:00:03]} 11. O-O {[%emt 0:00:13]} Be7 {[%emt 0:00:15]} 12. c3 {[%emt 0:00:04]} Nxf3+ {[%emt 0:00:32]} 13. Qxf3 {[%emt 0:00:02]} O-O {[%emt 0:00:03]} 14. Qg3 {[%emt 0:00:15]} Kh8 {[%emt 0:00:05]} 15. Rd1 {[%emt 0:00:08]} Qc7 {[%emt 0:00:09]} 16. Qh3 {[%emt 0:00:14]} g6 {[%emt 0:00:02]} 17. Bf4 {[%emt 0:00:10]} Rd8 {[%emt 0:00:16]} 18. Qh6 {[%emt 0:00:18]} Bf8 {[%emt 0:00:31]} 19. Qh4 {[%emt 0:00:21]} Rxd1+ {[%emt 0:01:13]} 20. Rxd1 {[%emt 0:00:06]} Bd7 {[%emt 0:00:06]} 21. Bg5 {[%emt 0:01:28]} Bg7 {[%emt 0:01:34]} 22. Bf6 {[%emt 0:00:22]} Kg8 {[%emt 0:00:18]} 23. Bxg7 {[%emt 0:00:24]} Kxg7 {[%emt 0:00:05]} 24. Qf6+ {[%emt 0:00:06]} Kg8 {[%emt 0:00:13]} 25. h4 {[%emt 0:00:06]} Bc6 {[%emt 0:00:03]} 26. Bc2 {[%emt 0:00:11]} h5 {[%emt 0:00:04]} *

[Event "SWE-ch Blitz 2019"]
[Site "Eskilstuna"]
[Date "2019.07.11"]
[Round "3.13"]
[White "Horn, Emilia"]
[Black "Nilsson, Joakim"]
[Result "*"]
[ECO "B15"]
[WhiteElo "1984"]
[BlackElo "2319"]
[Annotator "NA"]
[PlyCount "51"]
[EventDate "2019.07.06"]
[EventType "swiss"]
[EventCountry "SWE"]
[SourceTitle "playchess.com"]
[Source "ChessBase"]
[SourceQuality "1"]
[TimeControl "180+2"]

1. e4 {[%emt 0:00:00]} c6 {[%emt 0:00:00]} 2. d4 {[%emt 0:00:00]} d5 {[%emt 0:00:01]} 3. Nd2 {[%emt 0:00:01]} dxe4 {[%emt 0:00:02]} 4. Nxe4 {[%emt 0:00:01]} Nf6 {[%emt 0:00:02]} 5. Nxf6+ exf6 {[%emt 0:00:01]} 6. c3 {[%emt 0:00:04]} Bd6 {[%emt 0:00:02]} 7. g3 {[%emt 0:00:07]} O-O {[%emt 0:00:03]} 8. Bg2 {[%emt 0:00:02]} Re8+ {[%emt 0:00:05]} 9. Ne2 {[%emt 0:00:09]} Nd7 {[%emt 0:00:26]} 10. O-O {[%emt 0:00:03]} Nf8 {[%emt 0:00:02]} 11. Bf4 {[%emt 0:00:08]} Be6 {[%emt 0:00:08]} 12. Qd3 {[%emt 0:00:28]} Ng6 {[%emt 0:00:17]} 13. Bxd6 {[%emt 0:00:02]} Qxd6 {[%emt 0:00:02]} 14. Rfe1 {[%emt 0:00:23]} Bd5 {[%emt 0:00:11]} 15. f3 {[%emt 0:00:05]} Be6 {[%emt 0:00:11]} 16. c4 {[%emt 0:00:08]} Ne5 {[%emt 0:00:06]} 17. Qc3 {[%emt 0:00:26]} Nxc4 {[%emt 0:00:05]} 18. Nf4 {[%emt 0:00:03]} Nb6 {[%emt 0:00:04]} 19. Rad1 {[%emt 0:00:12]} Nd5 {[%emt 0:00:07]} 20. Nxd5 Bxd5 {[%emt 0:00:02]} 21. b3 {[%emt 0:00:05]} Qd7 {[%emt 0:00:31]} 22. a3 {[%emt 0:01:27]} h6 {[%emt 0:01:14]} 23. b4 {[%emt 0:00:14]} Rxe1+ {[%emt 0:00:23]} 24. Rxe1 {[%emt 0:00:06]} Re8 {[%emt 0:00:16]} 25. Re3 {[%emt 0:00:10]} Re6 {[%emt 0:01:53]} 26. f4 {[%emt 0:01:03]} *

[Event "SWE-ch Blitz 2019"]
[Site "Eskilstuna"]
[Date "2019.07.11"]
[Round "3.14"]
[White "Alm, Hakan"]
[Black "Carlsson, Ludvig"]
[Result "*"]
[ECO "C02"]
[WhiteElo "2276"]
[BlackElo "2218"]
[Annotator "NA"]
[PlyCount "66"]
[EventDate "2019.07.06"]
[EventType "swiss"]
[EventCountry "SWE"]
[SourceTitle "playchess.com"]
[Source "ChessBase"]
[SourceQuality "1"]
[TimeControl "180+2"]

1. e4 {[%emt 0:00:00]} e6 {[%emt 0:00:00]} 2. d4 {[%emt 0:00:00]} d5 {[%emt 0:00:00]} 3. e5 {[%emt 0:00:01]} c5 {[%emt 0:00:02]} 4. c3 {[%emt 0:00:01]} Nc6 {[%emt 0:00:06]} 5. Nf3 {[%emt 0:00:01]} Qb6 {[%emt 0:00:02]} 6. a3 {[%emt 0:00:02]} c4 {[%emt 0:00:02]} 7. Nbd2 {[%emt 0:00:02]} Bd7 {[%emt 0:00:04]} 8. g3 {[%emt 0:00:01]} Nge7 {[%emt 0:00:07]} 9. Bh3 {[%emt 0:00:02]} Qc7 {[%emt 0:00:02]} 10. O-O {[%emt 0:00:05]} Na5 {[%emt 0:00:09]} 11. Rb1 {[%emt 0:00:17]} Nc8 {[%emt 0:00:02]} 12. Ng5 {[%emt 0:00:08]} h6 {[%emt 0:00:19]} 13. Ngf3 {[%emt 0:00:17]} Nb6 {[%emt 0:00:03]} 14. Nh4 {[%emt 0:00:04]} Ba4 {[%emt 0:00:05]} 15. Qh5 {[%emt 0:00:05]} O-O-O {[%emt 0:00:10]} 16. f4 {[%emt 0:00:05]} Bc2 {[%emt 0:00:01]} 17. Ra1 {[%emt 0:00:01]} Kb8 {[%emt 0:00:18]} 18. Qf3 {[%emt 0:00:17]} Bd3 {[%emt 0:00:31]} 19. Rf2 {[%emt 0:00:06]} Be7 {[%emt 0:00:01]} 20. Ng2 {[%emt 0:00:04]} Bc2 {[%emt 0:00:15]} 21. Ne3 {[%emt 0:00:06]} Bh7 {[%emt 0:00:11]} 22. f5 {[%emt 0:00:03]} Rdf8 {[%emt 0:00:15]} 23. Qg4 {[%emt 0:00:14]} Bg5 {[%emt 0:00:32]} 24. Qe2 {[%emt 0:00:16]} Qe7 {[%emt 0:00:10]} 25. Bg4 {[%emt 0:00:48]} Qd7 {[%emt 0:00:13]} 26. h4 {[%emt 0:00:16]} Bxe3 {[%emt 0:00:10]} 27. Qxe3 {[%emt 0:00:02]} Bxf5 {[%emt 0:00:12]} 28. Bxf5 {[%emt 0:00:24]} exf5 {[%emt 0:00:12]} 29. Qf4 {[%emt 0:00:30]} g6 {[%emt 0:00:13]} 30. Rb1 {[%emt 0:00:08]} Qe6 {[%emt 0:00:07]} 31. b4 {[%emt 0:00:19]} cxb3 {[%emt 0:00:06]} 32. Nxb3 {[%emt 0:00:06]} Nxb3 33. Rxb3 {[%emt 0:00:01]} Ka8 {[%emt 0:00:12]} *

[Event "SWE-ch Blitz 2019"]
[Site "Eskilstuna"]
[Date "2019.07.11"]
[Round "3.15"]
[White "Nordgren, Tom"]
[Black "Nygren, Kim"]
[Result "*"]
[ECO "A25"]
[WhiteElo "1869"]
[BlackElo "2171"]
[Annotator "NA"]
[PlyCount "45"]
[EventDate "2019.07.06"]
[EventType "swiss"]
[EventCountry "SWE"]
[SourceTitle "playchess.com"]
[Source "ChessBase"]
[SourceQuality "1"]
[TimeControl "180+2"]

1. c4 {[%emt 0:00:00]} Nf6 {[%emt 0:00:00]} 2. g3 {[%emt 0:00:01]} d6 {[%emt 0:00:01]} 3. Bg2 {[%emt 0:00:01]} e5 {[%emt 0:00:01]} 4. Nc3 {[%emt 0:00:02]} Nc6 {[%emt 0:00:01]} 5. d3 {[%emt 0:00:06]} Bg4 {[%emt 0:00:04]} 6. Nf3 {[%emt 0:00:07]} h6 {[%emt 0:00:03]} 7. h3 Bd7 {[%emt 0:00:02]} 8. O-O {[%emt 0:00:07]} g5 {[%emt 0:00:03]} 9. Rb1 {[%emt 0:00:19]} a5 {[%emt 0:00:03]} 10. a3 {[%emt 0:00:01]} g4 {[%emt 0:00:05]} 11. hxg4 {[%emt 0:00:10]} Nxg4 {[%emt 0:00:01]} 12. Nh2 {[%emt 0:00:04]} Nxh2 13. Kxh2 {[%emt 0:00:01]} h5 {[%emt 0:00:09]} 14. Rh1 {[%emt 0:00:02]} h4 {[%emt 0:00:30]} 15. Kg1 {[%emt 0:00:01]} h3 {[%emt 0:00:13]} 16. Bd5 {[%emt 0:00:06]} Qf6 {[%emt 0:00:06]} 17. Ne4 {[%emt 0:00:10]} Qg6 {[%emt 0:00:06]} 18. Bg5 {[%emt 0:00:25]} Bg7 {[%emt 0:00:16]} 19. Be3 {[%emt 0:00:48]} Rh5 {[%emt 0:00:13]} 20. Kh2 {[%emt 0:00:16]} f5 {[%emt 0:00:03]} 21. Nd2 {[%emt 0:00:05]} f4 {[%emt 0:00:59]} 22. Be4 {[%emt 0:00:10]} Qf6 {[%emt 0:00:10]} 23. Qg1 {[%emt 0:00:26]} *

[Event "SWE-ch Blitz 2019"]
[Site "Eskilstuna"]
[Date "2019.07.11"]
[Round "3.16"]
[White "Zadruzny, Nicolaj"]
[Black "Troedsson, Anton"]
[Result "*"]
[ECO "D01"]
[WhiteElo "2280"]
[BlackElo "2045"]
[Annotator "NA"]
[PlyCount "55"]
[EventDate "2019.07.06"]
[EventType "swiss"]
[EventCountry "SWE"]
[SourceTitle "playchess.com"]
[Source "ChessBase"]
[SourceQuality "1"]
[TimeControl "180+2"]

1. d4 {[%emt 0:00:00]} d5 {[%emt 0:00:00]} 2. Nc3 {[%emt 0:00:01]} Nf6 {[%emt 0:00:01]} 3. Bg5 {[%emt 0:00:01]} Nbd7 {[%emt 0:00:06]} 4. Qd3 {[%emt 0:00:01]} g6 {[%emt 0:00:02]} 5. f3 {[%emt 0:00:05]} h6 {[%emt 0:00:02]} 6. Bh4 {[%emt 0:00:04]} Bg7 {[%emt 0:00:03]} 7. e4 {[%emt 0:00:01]} g5 {[%emt 0:00:05]} 8. Bf2 {[%emt 0:00:04]} e6 {[%emt 0:00:07]} 9. h4 {[%emt 0:00:09]} g4 {[%emt 0:00:08]} 10. e5 {[%emt 0:00:06]} Ng8 {[%emt 0:00:28]} 11. fxg4 {[%emt 0:00:01]} Ne7 {[%emt 0:00:05]} 12. Nf3 {[%emt 0:00:10]} b6 {[%emt 0:00:10]} 13. O-O-O {[%emt 0:00:11]} Bb7 {[%emt 0:00:02]} 14. Ne2 {[%emt 0:00:13]} c5 {[%emt 0:00:06]} 15. c3 {[%emt 0:00:05]} Qc7 {[%emt 0:00:06]} 16. Kb1 {[%emt 0:00:01]} Rc8 {[%emt 0:00:08]} 17. Nf4 {[%emt 0:00:02]} Nc6 {[%emt 0:00:07]} 18. Nh5 {[%emt 0:00:05]} Bf8 {[%emt 0:00:02]} 19. g5 {[%emt 0:00:26]} cxd4 {[%emt 0:00:03]} 20. cxd4 {[%emt 0:00:08]} hxg5 {[%emt 0:00:09]} 21. hxg5 {[%emt 0:00:01]} Rg8 {[%emt 0:00:04]} 22. Qh7 {[%emt 0:00:44]} Rg6 {[%emt 0:00:02]} 23. Bd3 {[%emt 0:00:20]} Ne7 {[%emt 0:00:03]} 24. Rc1 {[%emt 0:01:15]} Qb8 {[%emt 0:00:05]} 25. Rxc8+ {[%emt 0:00:03]} Bxc8 {[%emt 0:00:04]} 26. Bxg6 {[%emt 0:01:03]} Nxg6 {[%emt 0:00:01]} 27. Nh4 {[%emt 0:00:13]} Ba6 {[%emt 0:00:56]} 28. Rh3 {[%emt 0:01:26]} *